Cogmind - Beta 15 @@@ ROGUE MODE // 2025.06.28 @ 23:25:34 Player: puppuppit Result: Destroyed by IU-E2W(R) with Subdweller Machine Gun Performance ------------- Evolutions (0) 0 Regions Visited (3) 600 Robots Destroyed (38) 190 Value Destroyed (528) 528 Prototype IDs (0) 0 Alien Tech Used (0) 0 Bonus (0) 0 TOTAL SCORE: 1318 Bonus ------- None Cogmind --------- Core Integrity 0/250 Matter 270/300 Energy 140/140 System Corruption 2% Temperature Cool (0) Movement Treading (160) Location -10/Subcaves Parts ------- > --- POWER (1) -------- Light Deuterium Engine > --- PROPULSION (2) --- Improved Treads Improved Treads > --- UTILITY (2) ------ Large Storage Unit Core Shielding > --- WEAPON (2) ------- Particle Cannon Grenade Launcher > --- INVENTORY (15) --- Light Treads Light Treads Combat Airjet Combat Airjet Combat Airjet Combat Airjet Improved Heat Sink Large Matter Pod (150) High-capacity Matter Pod (200) Improved Terrain Scanner Particle Cannon Particle Cannon Subdweller Beam Cannon Subdweller Machine Gun Grenade Launcher Peak State ------------ > --- POWER ------------ Light Deuterium Engine > --- PROPULSION ------- Improved Treads Improved Treads > --- UTILITY ---------- Improved Heat Sink Large Storage Unit > --- WEAPON ----------- Particle Cannon Particle Cannon > --- INVENTORY -------- Light Treads Light Treads Light Treads Combat Airjet Combat Airjet Combat Airjet Combat Airjet Large Matter Pod High-capacity Matter Pod Improved Terrain Scanner Core Shielding Particle Cannon Particle Cannon Grenade Launcher [Rating: 18] Favorites ----------- Power Ion Engine Engine Ion Engine Propulsion Improved Treads Treads Improved Treads Utility Large Storage Unit Device Improved Terrain Scanner Storage Large Storage Unit Processor Targeting Computer Protection Core Shielding Weapon Light Assault Rifle Energy Gun Medium Laser Energy Cannon Particle Cannon Ballistic Gun Light Assault Rifle Launcher Grenade Launcher Build | -11 -10 -10 -10 ------- Run | Yrd Mat Min Sub Slots Evolved . | . . . . Power . | . . . . Propulsion . | . . . . Utility . | . . . . Weapon . | . . . . Parts Attached 26 | 7 14 5 . Power 4 | 1 2 1 . Engine 4 | 1 2 1 . Core . | . . . . Reactor . | . . . . Propulsion 6 | 2 2 2 . Treads 6 | 2 2 2 . Leg . | . . . . Wheel . | . . . . Hover . | . . . . Flight . | . . . . Utility 6 | 2 4 . . Device 2 | 1 1 . . Storage 2 | 1 1 . . Processor 1 | . 1 . . Hackware . | . . . . Protection 1 | . 1 . . Artifact . | . . . . Weapon 10 | 2 6 2 . Energy Gun 1 | 1 . . . Energy Cannon 2 | . 2 . . Ballistic Gun 5 | 1 4 . . Ballistic Cannon . | . . . . Launcher 2 | . . 2 . Special Weapon . | . . . . Impact Weapon . | . . . . Slashing Weapon . | . . . . Piercing Weapon . | . . . . Special Melee Weapon . | . . . . Unidentified Prototypes . | . . . . Parts Lost 4 | . 1 3 . Power 1 | . . 1 . Propulsion 2 | . . 2 . Utility . | . . . . Weapon 1 | . 1 . . Highest Loss Streak 2 | . 1 2 . To Critical Strikes . | . . . . Average Backups 12 | . 11 14 15 Power . | . . . . Propulsion 5 | . 5 6 6 Utility 3 | . 3 4 4 Weapon 3 | . 3 3 4 Tool/Special . | . . . . Unused Backups 21 | . 6 3 12 Power . | . . . . Propulsion 7 | . . . 7 Utility 5 | . 3 . 2 Weapon 9 | . 3 3 3 Tool/Special . | . . . . Average Slot Usage (%) 99 | . 99 99 100 Engine 13 | . 14 13 14 Treads 27 | . 28 27 28 Device 10 | . 8 13 8 Storage 14 | . 14 14 14 Processor 2 | . 4 . . Energy Cannon 12 | . 1 27 18 Ballistic Gun 13 | . 25 . . Peak Build Rating 18 | 9 15 18 17 Average Rating 13 | 6 10 17 16 On Entrance 10 | . 9 15 17 Naked Turns . | . . . . Heaviest Build 34 | 14 34 34 34 Greatest Support 46 | 40 46 46 46 Greatest Overweight (x) . | . . . . Average Overweight (x) . | . . . . Largest Inventory Capacity 15 | 8 15 15 15 Average Capacity 13 | 7 13 15 15 Most Carried 15 | 1 15 15 15 Average Carried 12 | . 12 14 14 Final Capacity 15 | 8 15 15 15 Final Carried 15 | 1 15 15 15 Class Distribution -------------------- 100% | Mutant Dominant Class ---------------- Mutant | -10/Materials Mutant | -10/Mines Mutant | -10/Subcaves Resources | -11 -10 -10 -10 ----------- Run | Yrd Mat Min Sub Matter Collected 1400 | 248 892 190 70 Remotely . | . . . . Salvage Created 1189 | 123 835 203 28 Parts 83 | 13 42 27 1 Haulers Intercepted 2 | . 2 . . Recyclers Shooed 1 | . 1 . . Parts Field Recycled . | . . . . Retrieved Matter . | . . . . Parts Self-Destructed . | . . . . Prevented . | . . . . Kills | -11 -10 -10 -10 ------- Run | Yrd Mat Min Sub Combat Hostiles Destroyed 24 | . 12 11 1 Guns 12 | . 12 . . Cannons 7 | . . 6 1 AOE 5 | . . 5 . Classes Destroyed 10 | 3 5 1 1 Worker 7 | 2 4 1 . Builder 8 | . 2 6 . Tunneler 4 | 2 . 2 . Hauler 2 | . 2 . . Recycler 3 | 1 2 . . Watcher 1 | . 1 . . Swarmer 3 | . 3 . . Grunt 9 | . 9 . . Subdweller 1 | . . . 1 Assembled 11 | . . 11 . Best Kill Streak 7 | 3 7 7 1 Combat Bots Only 6 | . 6 6 1 Max Kills in Single Turn 3 | 1 1 3 1 Gunslinging . | . . . . Exploded 2 | . . 2 . Melee . | . . . . Uniques/NPCs Destroyed . | . . . . Combat | -11 -10 -10 -10 -------- Run | Yrd Mat Min Sub Hostile Shots Fired 108 | . 80 20 8 Missed 18 | . 11 5 2 Hits 90 | . 69 15 6 Melee 6 | . . 6 . Projectile 84 | . 69 9 6 Critical Strikes 2 | . 2 . . Damage Taken 1261 | . 815 318 128 Core 251 | . 157 42 52 Absorbed by Shields . | . . . . Redirected to Shielding 17 | . 3 3 11 Core Remaining (%) 100 | 100 . . . Volleys Fired 158 | 19 110 24 5 Largest 2 | 2 2 2 2 Hottest 136 | 70 70 136 98 Shots Fired 307 | 38 213 46 10 Gun 251 | 38 213 . . Cannon 45 | . . 40 5 Launcher 11 | . . 6 5 Special . | . . . . Kinetic 212 | 19 193 . . Thermal 84 | 19 20 40 5 Explosive 11 | . . 6 5 Electromagnetic . | . . . . Robot Hit Streak 14 | 6 14 10 5 Robot Miss Streak 6 | 2 6 4 1 Penetration Max . | . . . . Secondary Targets . | . . . . Shots Hit Robots 180 | 17 130 26 7 Core Hits 89 | 7 55 25 2 Critical Kills . | . . . . Critical Parts Destroyed 1 | . 1 . . Critical Strikes 2 | 1 1 . . Burn 1 | 1 . . . Destroy 1 | . 1 . . Melee Attacks . | . . . . Impact . | . . . . Slashing . | . . . . Piercing . | . . . . Sneak Attacks . | . . . . Combat Hostiles . | . . . . Follow-up Attacks . | . . . . Damage Inflicted 2316 | 187 1106 772 251 Guns 1293 | 187 1106 . . Cannons 538 | . . 475 63 Explosions 485 | . . 297 188 Melee . | . . . . Ramming . | . . . . Kinetic 1041 | 61 980 . . Thermal 790 | 126 126 475 63 Explosive 485 | . . 297 188 Electromagnetic . | . . . . Impact . | . . . . Slashing . | . . . . Piercing . | . . . . Highest Corruption 2 | . 2 2 2 Average Corruption 1 | . 1 2 2 Corruption Purged . | . . . . Corruption Blocked . | . . . . Effects 25 | . 8 14 3 Message Errors 9 | . 2 6 1 Matter Fused 2 | . 1 1 . Heat Flow Errors 5 | . 2 3 . Energy Discharges 3 | . . 2 1 Parts Rejected 1 | . . 1 . Data Loss (minor) 2 | . 1 1 . Alerts 2 | . 1 . 1 Weapon Failures 1 | . 1 . . Overload Shots . | . . . . Overflow Damage 66 | . . 66 . Projectiles 29 | . . 29 . Explosions 37 | . . 37 . Melee . | . . . . Knockbacks . | . . . . Impact . | . . . . Kinetic . | . . . . Secondary . | . . . . Self-Inflicted Damage 38 | . . 38 . Shots 1 | . . 1 . Rammed . | . . . . Targets Rammed . | . . . . Kicked . | . . . . Crushed . | . . . . Highest Temperature 298 | 170 298 185 . Average Temperature 83 | 67 104 59 . Received Heat Transfer 493 | . 441 40 12 Effects 2 | . 2 . . Energy Bleed 1 | . 1 . . Interference 1 | . 1 . . Siege Activations . | . . . . Martial Activations . | . . . . Shielding Activations . | . . . . Robots Disrupted . | . . . . Combat Hostiles . | . . . . Robots Corrupted . | . . . . Combat Hostiles . | . . . . Parts Fried . | . . . . Impact Corruptions . | . . . . Robots Melted . | . . . . Combat Hostiles . | . . . . Parts Melted 1 | . . 1 . Heat Transferred 1776 | 444 370 851 111 Parts Sabotaged . | . . . . Parts Stolen . | . . . . Parts Stripped . | . . . . Power Chain Reactions . | . . . . Alert | -11 -10 -10 -10 ------- Run | Yrd Mat Min Sub Maximum Alert Level . | . . . . Low Security (%) 100 | 100 100 100 . Level 1 . | . . . . Level 2 . | . . . . Level 3 . | . . . . Level 4 . | . . . . Level 5 . | . . . . High Security . | . . . . Max Security . | . . . . Peak Influence 145 | 10 145 13 . Initial . | . . . . Average 20 | 1 34 . . Influence Increases 530 | 25 436 69 . Destroy 0b10 Robot/C 240 | . 240 . . Destroy 0b10 Robot/NC 125 | 25 55 45 . Destroy Leader 76 | . 76 . . Successful Hack 16 | . 5 11 . Select Force Hacks 30 | . 30 . . Destroy Structure 13 | . . 13 . Lose Combat Pursuer 30 | . 30 . . Influence Decreases 530 | 25 436 69 . Time Decay 520 | 25 426 69 . Lost Part 10 | . 10 . . Squads Dispatched 3 | . 3 . . Investigation 2 | . 2 . . Extermination . | . . . . Reinforcement 1 | . 1 . . Assault . | . . . . Garrison . | . . . . Intercept . | . . . . Searches Triggered . | . . . . Construction Impeded . | . . . . Haulers Reinforced . | . . . . Active Scanning Responses . | . . . . Cargo Convoy Interrupts . | . . . . Stealth | -11 -10 -10 -10 --------- Run | Yrd Mat Min Sub Distress Signals 4 | . 4 . . Communications Jammed . | . . . . Distress Signals . | . . . . Times Spotted 40 | . 23 15 2 Peak Tracking Total 8 | . 5 8 1 Tactical Retreats 3 | . 2 1 . Traps | -11 -10 -10 -10 ------- Run | Yrd Mat Min Sub Traps Triggered 2 | . 2 . . Indirectly . | . . . . Trap Hack Attempts . | . . . . Triggered . | . . . . Disarmed . | . . . . Reprogrammed . | . . . . Reused . | . . . . Traps Extracted . | . . . . Installed . | . . . . Triggered . | . . . . Machines | -11 -10 -10 -10 ---------- Run | Yrd Mat Min Sub Machines Disabled . | . . . . Max in Single Turn . | . . . . Machines Repaired . | . . . . Machines Dismantled . | . . . . Machines Sabotaged . | . . . . Overloaded Fab Kills . | . . . . Hacking | -11 -10 -10 -10 --------- Run | Yrd Mat Min Sub Machines Accessed 6 | . 5 1 . Terminals 4 | . 3 1 . Fabricators . | . . . . Repair Stations 1 | . 1 . . Recycling Units 1 | . 1 . . Scanalyzers . | . . . . Garrison Access . | . . . . Total Hacks 17 | . 12 5 . Successful 7 | . 5 2 . Failed 9 | . 7 2 . Catastrophic . | . . . . Database Lockouts 1 | . . 1 . Manual 11 | . 6 5 . Terminals 12 | . 7 5 . Fabricators . | . . . . Repair Stations 4 | . 4 . . Recycling Units 1 | . 1 . . Scanalyzers . | . . . . Garrison Access . | . . . . Terminal Hacks 3 | . 2 1 . Robot Analysis 2 | . 1 1 . Terminal Index 1 | . 1 . . Fabricator Hacks . | . . . . Repair Station Hacks 1 | . 1 . . Scan Component 1 | . 1 . . Recycling Unit Hacks . | . . . . Scanalyzer . | . . . . Garrison Access Hacks . | . . . . Unauthorized Hacks 3 | . 2 1 . Terminals 2 | . 1 1 . Botnet 2 | . 1 1 . Fabricators . | . . . . Repair Stations . | . . . . Recycling Units 1 | . 1 . . Tunnel 1 | . 1 . . Scanalyzers . | . . . . Garrison Access . | . . . . Data Cores Recovered . | . . . . Used . | . . . . Hacking Detections 5 | . 4 1 . Full Trace Events 2 | . 2 . . Feedback Events 1 | . 1 . . Corruption 1 | . 1 . . Feedback Blocked . | . . . . Robot Schematics Acquired . | . . . . Robots Built . | . . . . Authchips . | . . . . Time . | . . . . Total Robot Build Rating . | . . . . Part Schematics Acquired . | . . . . Parts Built . | . . . . Authchips . | . . . . Time . | . . . . Total Part Build Rating . | . . . . Parts Repaired . | . . . . Time . | . . . . Parts Recycled . | . . . . Recycled Matter . | . . . . Retrieved Matter . | . . . . Retrieved Components . | . . . . Parts Scanalyzed . | . . . . Part Schematics Acquired . | . . . . Parts Damaged . | . . . . Bothacking | -11 -10 -10 -10 ------------ Run | Yrd Mat Min Sub Used RIF Installer . | . . . . Robots Hacked . | . . . . Non-combat . | . . . . Combat . | . . . . Robot Hacks Applied . | . . . . Relay Couplers Released . | . . . . Fabnet Peak Effective % . | . . . . Robots Rewired . | . . . . Allies Hacked . | . . . . Hacks Repelled . | . . . . Allies | -11 -10 -10 -10 -------- Run | Yrd Mat Min Sub Total Allies . | . . . . Largest Group . | . . . . Highest-Rated Group . | . . . . Highest-Rated Ally . | . . . . Total Orders . | . . . . Ally Attacks . | . . . . Total Damage . | . . . . Kills . | . . . . Allies Corrupted . | . . . . Allies Melted . | . . . . Intel | -11 -10 -10 -10 ------- Run | Yrd Mat Min Sub Active Infowar (turns) 1082 | 57 889 14 122 Terrain 1082 | 57 889 14 122 Robot Analysis Total 2 | . 1 1 . Derelict Logs Recovered 1 | . . 1 . Drone Launches . | . . . . Drone Recoveries . | . . . . Exploration | -11 -10 -10 -10 ------------- Run | Yrd Mat Min Sub Turns Passed 3000 | 131 1594 1078 197 Spaces Moved 1531 | 45 773 606 107 Core 4 | 4 . . . Treads 1527 | 41 773 606 107 Legs . | . . . . Wheels . | . . . . Hover . | . . . . Flight . | . . . . Fastest Speed 50 | 50 160 160 160 Average Speed 159 | 150 160 160 160 Slowest Speed 160 | 160 160 160 160 Overloaded Moves . | . . . . Propulsion Burnouts . | . . . . Robots Hopped . | . . . . Potential Cave-ins . | . . . . Cave-ins Triggered . | . . . . Exploration Rate (%) 49 | 5 91 95 8 Regions Visited 3 Branch Regions 2 Pre-discovered Areas 1 | . 1 . . Known Exits Taken . | . . . . Unknown Exits Taken 3 | 1 1 1 . Scrap Searched 5 | . . 1 4 Spaces Dug . | . . . . Terrain Destroyed 38 | . . 19 19 Melee . | . . . . Projectile 3 | . . 3 . AOE 35 | . . 16 19 Terrain Rammed . | . . . . Walls Destroyed . | . . . . Machines Disabled . | . . . . Actions | -11 -10 -10 -10 --------- Run | Yrd Mat Min Sub Total 1820 | 71 963 664 122 Wait 37 | . 23 12 2 Move 1528 | 44 772 605 107 Hop . | . . . . Pick Up 34 | 1 26 5 2 Fast Attach 9 | 7 . 2 . Attach 3 | . 1 2 . Detach . | . . . . Swap 29 | . 14 11 4 Drop 22 | . 17 3 2 Fire 158 | 19 110 24 5 Melee . | . . . . Ram . | . . . . Kick . | . . . . Crush . | . . . . Escape Stasis . | . . . . Rewire . | . . . . Trap . | . . . . Miscellaneous . | . . . . Route ------- -11/Scrapyard -10/Materials (discovered 4 exits: [*Mat x3] / *Min) -10/Mines (discovered 3 exits: [*Mat x2] / [*Sub]) -10/Subcaves (discovered 1 exit: [*Mat]) History --------- Turn | Location | Event 7 | -11/Scrapyard | Discovered new exit (range 15) 132 | -11/Scrapyard | Entered Materials 318 | -10/Materials | Build established: Mutant 416 | -10/Materials | Discovered new exit (range 14) 634 | -10/Materials | Discovered new exit (range 13) 776 | -10/Materials | Discovered new exit (range 6) 856 | -10/Materials | Core integrity fell below 50% 947 | -10/Materials | Discovered new exit (range 16) 1726 | -10/Materials | Entered Mines 1727 | -10/Mines | Assembled infested the area 1732 | -10/Mines | Assisted by a Guerilla fighting off Assembled 1761 | -10/Mines | Met a Derelict bent on vengeance 1976 | -10/Mines | Central database locked down 2191 | -10/Mines | Discovered new exit (range 15) 2231 | -10/Mines | Found a hidden stash of uninstalled traps 2309 | -10/Mines | Discovered new exit (range 3) 2450 | -10/Mines | Discovered new exit (range 11) 2509 | -10/Mines | Learned location of 1 exit from Materials 2804 | -10/Mines | Entered Subcaves 2806 | -10/Subcaves | Discovered new exit (range 10) 2998 | -10/Subcaves | Core integrity fell below 20% 3001 | -10/Subcaves | Destroyed by IU-E2W(R) with Subdweller Machine Gun Last Messages --------------- 02950_ Acquired 30 matter. 02953_ Subatomizers dissect the Disposable Heat Sink. 02954_ Searching scrap... 02954_ Found Mak. Kinetic Plating. 02954_ Found 47 Matter. 02956_ Dropped Lgt. Treads. 02958_ Acquired Sub. Machine Gun. 02960_ Searching scrap... 02960_ Found Sub. Beam Cannon. 02960_ Found 66 Matter. 02962_ Searching scrap... 02962_ Found Sub. Laser. 02962_ Found Shrapnel Trap. 02962_ Found 58 Matter. 02965_ Subatomizers dissect the Disposable Heat Sink. 02965_ Dropped Particle Cannon. 02966_ Acquired Sub. Beam Cannon. 02980_ Subatomizers dissect the Mak. Light Armor Plating. 02991_ The unstable cave ceiling collapses. Map ----- +----------------------------------------------------+ | ??????????#????## #???????#% #????????????????? | | ???????????????# #??###### #?????#??????????? | | ???????????????## ##??# % #????????????????? | | ???????????????## #### ###??????????????? | | ???????????????# ## #??????????????? | | ?????#?????????# #??????????????? | | ?????????????#### #### % #??????????????? | | ?????????????# ## # ####??## ##??????????????? | | ?????????????# ######???#?## ###???????????????? | | ?????????????# ########### ##????? ???????????? | | ?????????????## ## ## ###????????????????? | | ??????????????# ## #??????????? | | ????????????### ## #??????????? | | ?????????????# ###### #??????????? | | ????????????### ##?????# #?????????? | | ??????????#???### ##?#?#???# ????????? | | ???????????????# ##?? ###?? ???????? | | ??????#?????#??# ## #???# ???????? | | ?#???????????### #?????# ????????? | | ?#???#???????#!%# ##?????# ????????? | | ???????????#?# = % #####??#?#??? ?????????? | | ????????#????##] ! ####??#?????? ?????????? | | ?????????????#%&"#! ## #??#??????? ???????????? | | ?????????#???# %## #??????????????????????? | | ?????????????###& #####??????????????????? | | ?????????????# [ @ #??????????????????? | | ?????????????# #?#????????????????? | | ?????????????# ### #?????????????????? | | ??????????##?# R #### #?????????????????? | | ?????????????# # #???# #?????????????????? | | ?????????????## ## #????##?????????????????? | | ??????????????# ## #???????????????????????? | | ??????????????# ?# #??????????#????????????? | | ?????????????# ?## #???????????????????????? | | ?????????????## ??## ##???????????????????????? | | ??????????????# ???###????????????????????????? | | ?????????????? #??????????????#???????????????? | | ??????????????# ???????????????????????????????? | | ???????????????# ???????????????????????????????? | | ???????????"????? ???????????????????????????????? | | ?????????????????????????????????????????????????? | | ?????????????????????????????????????????????????? | | ?????????????????????????????????????????????????? | | ?????????????????????????????????????????????????? | | ?????????????????????????????????????????????????? | | ?????????????????????????????????????????????????? | | ?????????????????????????????????????????????????? | | ?????????????????????????????????????????????????? | | ?????????????????????????????????????????????????? | | ?????????????????????????????????????????????????? | +----------------------------------------------------+ Best States ------------- Heat Dissipation 39 Energy Generation 14 Energy Capacity 250 Matter Stores 300 Matter Capacity 300 Sight Range 16 Terrain Scan Range 16 Terrain Scan Density 10 Core Shielding 20 Evasion (%) 40 Targeting Accuracy 5 Recoil Reduction 2 Item Schematics ----------------- None Robot Schematics ------------------ None Fabricated ------------ Nothing Repaired ---------- Nothing Alien Tech Used ----------------- None Achievements -------------- None Challenges ------------ None Game ------ Seed DerelictNullRailgun Manual? 0 Play Time 00:14:44 Cumulative 359.8 hours Start 2025.06.28 @ 23:12:13 End 2025.06.28 @ 23:25:34 Sessions 1 Manual Loads 0 Difficulty Rogue Special Mode None Game No. 210 Rogue 210 Adventurer 0 Explorer 0 Win Type - Total 4 Types 2/0/1/1/0/0/0/0/0/0 Lore% 84 Gallery% 73 Achievement% 67 Wizard Run 0 Options --------- Layout 2 ASCII 0 Keyboard 1 Movement Vi Keybinds 0 Fullscreen 2 Font 16/Tamsyn Map View 55x47 Zoom Use 0% Tactical HUD 1 Map Filters NONE Filters NONE Steam 0 RUN: a2f2d82f-da6d-490a-97b3-6d2a6a5885f4